bitfinex-derivatives/quotes_ETHF0:USTF0_20250428
["timestamp","ask_amount","ask_price","bid_price","bid_amount"]
[1745861583077,1.13685,1758.7,1758.6,2.85707]
[1745861583282,1.13685,1758.7,1758.6,3.74197]
[1745861583982,1.1368,1758.7,1758.6,3.74197]
[1745861584483,2.84155,1759.0,1758.6,2.6051]
[1745861584681,1.13671,1758.9,1758.8,1.13665]
[1745861584875,1.13671,1758.9,1758.8,2.78245]
[1745861588686,1.13671,1758.9,1758.8,2.78254]
[1745861590388,1.13666,1759.0,1758.9,1.13661]
[1745861590588,1.13666,1759.0,1758.9,2.00321]
[1745861590788,1.13666,1759.0,1758.9,3.64371]
[1745861591288,1.13666,1759.0,1758.9,3.64377]
[1745861591490,2.75656,1759.0,1758.9,2.5071]
[1745861591683,2.75656,1759.0,1758.9,3.64377]
[1745861591886,1.13657,1759.1,1759.0,1.13661]
[1745861592082,1.13657,1759.1,1759.0,3.63831]
[1745861593091,1.13657,1759.1,1758.9,0.8666]
[1745861593283,1.1368,1758.8,1758.7,3.61629]
[1745861594290,1.1368,1758.8,1758.7,1.6405]
[1745861594489,1.1368,1758.7,1758.6,1.13685]
[1745861594680,1.9424,1758.7,1758.6,1.13685]
[1745861596488,1.9424,1758.7,1758.6,1.98685]
[1745861597085,1.9424,1758.7,1758.5,1.6305]
[1745861597086,1.13687,1758.6,1758.5,1.6305]
[1745861597282,3.64747,1758.6,1758.5,2.76743]
[1745861597778,2.00997,1758.6,1758.5,2.76743]
[1745861601290,2.00997,1758.6,1758.5,1.6305]
[1745861601490,3.71587,1758.6,1758.5,1.6305]
[1745861601695,3.71587,1758.6,1758.5,2.76743]
[1745861602283,1.13686,1758.7,1758.6,1.1368]
[1745861602489,1.13686,1758.7,1758.6,6.0758]
[1745861602984,1.13677,1758.8,1758.7,1.13674]
[1745861603182,1.13677,1758.8,1758.7,4.53154]
[1745861604399,1.96002,1758.9,1758.8,1.13674]
[1745861604692,1.13661,1759.1,1759.0,1.13656]
[1745861605191,6.28327,1759.2,1759.0,1.13656]
[1745861605192,2.02141,1759.2,1759.1,1.13654]
[1745861605584,3.72421,1759.2,1759.1,2.86454]
[1745861605787,3.72421,1759.2,1759.1,1.728]
[1745861605994,3.72421,1759.2,1759.1,2.86454]
[1745861607290,3.72421,1759.2,1759.1,1.728]
[1745861607598,3.72421,1759.2,1759.1,2.86454]
[1745861610004,2.02141,1759.2,1759.1,2.86454]
[1745861615597,1.99073,1759.4,1759.3,1.13641]
[1745861615797,2.79883,1759.4,1759.3,1.13641]
[1745861616295,1.13641,1759.3,1759.2,2.86352]
[1745861621097,3.7158,1759.4,1759.3,1.13641]
[1745861621407,1.1364,1759.4,1759.3,3.62461]
[1745861621704,1.1364,1759.4,1759.3,4.44641]
[1745861621900,1.13633,1759.5,1759.4,1.13628]
[1745861622204,1.13633,1759.5,1759.4,2.81708]
[1745861622613,1.13633,1759.5,1759.4,2.81715]
[1745861622904,2.90763,1759.5,1759.4,2.81715]
[1745861624308,2.90763,1759.5,1759.4,1.6808]
[1745861624704,2.90763,1759.5,1759.4,2.81715]
[1745861624902,1.13635,1759.4,1759.3,0.8074]
[1745861625108,1.13641,1759.3,1759.2,6.77064]
[1745861625302,1.13641,1759.3,1759.2,1.94904]
[1745861625899,1.13648,1759.2,1759.1,45.94419]
[1745861626104,1.13648,1759.2,1759.1,46.75679]
[1745861626804,1.13648,1759.2,1759.1,5.95679]
[1745861627000,4.44777,1759.3,1759.2,1.13648]
[1745861627205,1.95107,1759.3,1759.2,1.13648]
[1745861629303,1.13648,1759.2,1759.1,2.749]
[1745861629610,1.13648,1759.2,1759.1,5.9568]
[1745861633614,1.13648,1759.2,1759.1,2.749]
[1745861634613,1.13648,1759.2,1759.1,5.9568]
[1745861635012,1.13648,1759.2,1759.1,1.6125]
[1745861635212,1.13648,1759.2,1759.1,2.74904]
[1745861636108,1.13648,1759.2,1759.1,5.95684]
[1745861637108,0.8146,1759.3,1759.2,1.13648]
[1745861637308,3.2078,1759.7,1759.2,3.97767]
[1745861637509,6.6322,1759.7,1759.4,1.13629]
[1745861637708,1.741,1759.6,1759.4,1.13629]
[1745861637910,1.741,1759.6,1759.4,3.68739]
[1745861638115,1.741,1759.6,1759.5,2.81158]
[1745861638513,4.8912,1759.7,1759.5,2.81158]
[1745861638814,4.8912,1759.7,1759.6,1.6753]
[1745861639015,6.6322,1759.7,1759.6,1.6753]
[1745861639217,1.13623,1759.6,1759.4,0.8758]
[1745861639408,2.78723,1759.6,1759.4,2.5485]
[1745861639609,1.651,1759.6,1759.4,2.5485]
[1745861639916,1.651,1759.5,1759.4,2.5485]
[1745861640320,2.78728,1759.5,1759.3,7.1678]
[1745861640610,2.78728,1759.5,1759.3,3.96]
[1745861640611,2.00755,1759.4,1759.3,3.96]
[1745861640814,3.3613,1759.4,1759.3,5.09641]
[1745861641005,1.13625,1759.6,1759.4,1.13634]
[1745861641207,4.49756,1759.6,1759.4,1.6727]
[1745861641409,1.13628,1759.5,1759.3,3.96]
[1745861641611,2.78728,1759.5,1759.3,5.09641]
[1745861642015,2.78728,1759.5,1759.3,6.76911]
[1745861642406,2.78728,1759.5,1759.4,1.6545]
[1745861643518,1.651,1759.5,1759.3,3.96]
[1745861643721,1.13648,1759.2,1759.1,3.2078]
[1745861644224,1.13648,1759.2,1759.1,4.8623]
[1745861644415,4.55947,1759.3,1759.1,5.99884]
[1745861644720,4.55947,1759.3,1759.2,1.6545]
[1745861645419,1.13648,1759.2,1759.1,3.2078]
[1745861645621,2.78608,1759.2,1759.1,3.2078]
[1745861646013,1.13654,1759.1,1759.0,6.7634]
[1745861646921,2.78611,1759.2,1759.1,1.13654]
[1745861647222,1.13651,1759.2,1759.1,2.80334]
[1745861647524,2.78599,1759.4,1759.3,1.13641]
[1745861648120,2.78599,1759.4,1759.3,2.80321]
[1745861648314,2.78599,1759.4,1759.3,1.6668]
[1745861649422,1.13654,1759.1,1759.0,5.09657]
[1745861649628,1.13654,1759.1,1759.0,5.94097]
[1745861650329,1.13654,1759.1,1759.0,3.96]
[1745861651025,1.13654,1759.1,1759.0,5.7217]
[1745861651627,4.34434,1759.1,1759.0,1.7617]
[1745861651925,1.1368,1758.7,1758.6,7.56289731]
[1745861652130,8.3046,1758.7,1758.6,7.56289731]
[1745861652323,13.3046,1758.7,1758.6,7.56289731]
[1745861652523,13.81981542,1758.7,1758.6,4.45562731]
[1745861652725,13.72389652,1758.7,1758.6,2.46536731]
[1745861652929,13.81979606,1758.7,1758.6,2.46536731]
[1745861653222,17.62178407,1758.7,1758.6,0.06505731]
[1745861653421,19.23848407,1758.7,1758.6,0.06505731]
[1745861653815,1.13711,1758.3,1758.2,1.13712]
[1745861654020,5.09711,1758.3,1758.2,2.90352]
[1745861654427,5.91565,1758.4,1758.2,1.7664]
[1745861654628,5.91565,1758.4,1758.3,2.86296]
[1745861654824,1.95565,1758.4,1758.3,2.86296]
[1745861655024,1.13698,1758.5,1758.4,1.13699]
[1745861655225,1.13698,1758.5,1758.4,2.86289]
[1745861655424,3.2078,1758.7,1758.4,1.7259]
[1745861655620,5.09683,1758.7,1758.6,1.13687]
[1745861655819,5.09683,1758.7,1758.5,3.73898]
[1745861656028,7.1678,1758.7,1758.2,4.0918]
[1745861656216,5.38581,1758.6,1758.2,4.968]
[1745861656421,1.13703,1758.4,1758.3,1.13705]
[1745861656626,1.13698,1758.5,1758.3,1.13705]
[1745861656928,1.13699,1758.4,1758.3,1.13705]
[1745861657127,2.5436,1758.6,1758.2,7.81071]
[1745861657326,1.13695,1758.5,1758.4,4.34475]
[1745861657626,1.13695,1758.5,1758.4,1.13695]
[1745861658220,1.13701,1758.4,1758.3,1.137]
[1745861658420,1.13706,1758.3,1758.2,4.968]
[1745861658633,1.13706,1758.3,1758.2,6.10512]
[1745861659932,1.13704,1758.4,1758.3,1.13703]
[1745861660529,1.13706,1758.3,1758.2,6.10511]
[1745861660830,1.13705,1758.4,1758.3,1.13702]
[1745861661030,1.13696,1758.5,1758.4,1.13694]
[1745861662231,5.95442,1758.6,1758.5,1.13693]
[1745861662428,0.8565,1758.6,1758.5,1.13693]
[1745861662732,1.13683,1758.7,1758.6,1.13687]
[1745861663431,1.13687,1758.6,1758.5,5.19228]
[1745861665831,1.13686,1758.7,1758.6,1.13682]
[1745861666027,1.13686,1758.7,1758.6,2.00092]
[1745861668330,1.13686,1758.7,1758.6,3.69082]
[1745861668531,1.13676,1758.8,1758.7,1.1368]
[1745861668735,8.30154,1758.9,1758.8,1.13674]
[1745861669333,1.13666,1759.0,1758.9,1.13661]
[1745861669933,1.13644,1759.3,1759.2,1.13641]
[1745861670136,1.96201,1759.4,1759.3,1.13641]
[1745861670437,1.13641,1759.4,1759.3,1.13641]
[1745861671122,1.13634,1759.5,1759.4,1.13633]
[1745861671723,3.957,1759.7,1759.4,4.0538]
[1745861671926,1.13624,1759.6,1759.5,2.75947]
[1745861672931,1.13624,1759.6,1759.5,1.6232]
[1745861673532,2.739,1759.7,1759.6,1.13622]
[1745861673735,1.13622,1759.6,1759.5,2.75943]
[1745861674534,4.0167,1759.9,1759.5,1.6232]
[1745861674836,1.94497,1759.9,1759.8,1.13609]
[1745861675036,0.8089,1759.9,1759.6,5.6682]
[1745861675242,1.13612,1759.8,1759.7,2.74092]
[1745861675533,5.5588,1760.0,1759.6,4.0634]
[1745861675735,1.13606,1759.9,1759.8,1.13605]
[1745861675935,1.13613,1759.8,1759.7,1.13611]
[1745861676835,1.13607,1759.9,1759.8,1.13605]
[1745861677034,1.13615,1759.8,1759.7,1.13613]
[1745861677236,1.13607,1759.9,1759.8,1.13605]
[1745861678137,1.13613,1759.8,1759.7,1.13611]
[1745861679933,2.4212,1760.0,1759.6,6.9039]
[1745861680137,1.95442,1760.0,1759.9,1.13603]
[1745861680340,1.13606,1759.9,1759.8,1.13605]
[1745861681238,0.8184,1760.0,1759.9,1.13596]
[1745861681239,1.13598,1760.0,1759.9,1.13596]
[1745861682044,4.60679,1760.2,1759.8,4.0268]
[1745861682045,1.7672,1760.2,1759.8,4.0268]
[1745861682238,1.13592,1760.1,1760.0,1.13595]
[1745861682434,1.13592,1760.1,1760.0,4.34375]
[1745861683337,1.13596,1760.0,1759.9,1.136]
[1745861683845,1.13595,1760.1,1760.0,1.13592]
[1745861684436,1.136,1760.0,1759.9,1.13597]
[1745861685844,1.73716025,1760.1,1759.8,4.0268]
[1745861686037,1.13598,1760.0,1759.9,1.13596]
[1745861686445,1.14091025,1760.1,1760.0,1.13596]
[1745861688344,0.00496025,1760.1,1760.0,1.13596]
[1745861688543,1.98677,1760.5,1760.2,3.97534]
[1745861688749,1.7036,1760.5,1760.4,1.1357]
[1745861688944,0.8525,1760.5,1760.4,1.1357]
[1745861689144,0.8525,1760.5,1760.4,5.9899]
[1745861689442,1.97037,1760.7,1760.6,1.13554]
[1745861689836,3.73477,1760.7,1760.6,1.13554]
[1745861690039,1.13557,1760.6,1760.5,2.78198]
[1745861690239,1.13557,1760.6,1760.5,1.13558]
[1745861690546,2.89997,1760.6,1760.5,1.13558]
[1745861691248,2.89997,1760.6,1760.5,2.78478]
[1745861692441,2.90009,1760.6,1760.5,2.78478]
[1745861695854,1.7644,1760.6,1760.5,2.78478]
[1745861696043,2.90009,1760.6,1760.5,2.78478]
[1745861696247,1.97048,1760.7,1760.6,1.13569]
[1745861696452,3.70838,1760.7,1760.6,2.82319]
[1745861697047,2.5727,1760.7,1760.6,2.82319]
[1745861697253,1.13553,1760.9,1760.8,1.13556]
[1745861698056,2.75683,1760.9,1760.8,1.13556]
[1745861698260,2.75683,1760.9,1760.8,2.81726]
[1745861699354,2.8389,1760.8,1760.4,4.763]
[1745861699555,1.13575,1760.6,1760.5,1.13572]
[1745861699757,1.13575,1760.6,1760.5,2.81742]
[1745861699950,3.63838,1760.7,1760.6,1.13569]
[1745861701256,2.5027,1760.7,1760.6,1.13569]
[1745861701455,3.63832,1760.7,1760.6,1.13569]
[1745861702763,1.13569,1760.6,1760.5,3.6958]
[1745861702964,2.84849,1760.6,1760.5,1.1357]
[1745861703166,1.7128,1760.6,1760.5,1.13575]
[1745861703359,2.01707,1760.7,1760.6,1.13569]
[1745861703560,3.63687,1760.7,1760.6,1.13569]
[1745861703760,3.63687,1760.7,1760.6,2.79299]
[1745861707768,0.8814,1760.7,1760.6,2.79299]
[1745861707965,1.13562,1760.8,1760.7,1.13562]
[1745861708167,1.13562,1760.8,1760.7,2.80952]
[1745861709368,2.81852,1760.8,1760.7,2.80952]
[1745861710167,3.61902,1760.8,1760.7,1.6739]
[1745861710370,1.13562,1760.7,1760.6,1.13563]
[1745861710582,2.81852,1760.7,1760.6,1.13563]
[1745861710978,1.13569,1760.6,1760.5,3.6393]
[1745861711174,3.66319,1760.6,1760.5,3.6393]
[1745861711477,3.66319,1760.6,1760.5,3.63935]
[1745861711673,0.8446,1760.6,1760.5,3.63935]
[1745861711880,3.61901,1760.8,1760.7,1.13562]
[1745861713467,1.13569,1760.6,1760.5,2.01411]
[1745861715984,3.67736,1760.7,1760.6,1.13569]
[1745861716280,0.8133,1760.7,1760.6,1.13569]
[1745861717081,1.94892,1760.7,1760.6,1.13569]
[1745861718485,0.8133,1760.7,1760.6,1.13569]
[1745861719284,2.83862,1761.0,1760.5,7.76298]
[1745861719285,1.13549,1761.0,1760.9,1.13543]
[1745861719483,3.2078,1761.3,1761.2,1.1353]
[1745861719669,3.4767,1761.3,1761.2,1.1353]
[1745861719868,4.61194,1761.3,1761.2,1.1353]
[1745861720079,3.4767,1761.3,1761.2,1.1353]
[1745861720276,4.61194,1761.3,1761.2,1.1353]
[1745861720678,1.1353,1761.2,1761.1,4.34311]
[1745861720882,2.891,1761.2,1761.1,4.34311]
[1745861721077,1.7557,1761.2,1761.1,4.34311]
[1745861721271,2.85629,1761.3,1761.2,1.1353]
[1745861721483,1.99039,1761.3,1761.2,1.1353]
[1745861724985,6.9116,1761.5,1761.1,9.99508]
[1745861724986,4.0737,1761.5,1761.1,9.99508]
[1745861725185,4.34297,1761.5,1761.4,1.13517]
[1745861726090,6.06117,1761.5,1761.4,1.13517]
[1745861726791,1.13517,1761.4,1761.3,2.8174]
[1745861726987,12.7639,1761.5,1761.1,3.949]
[1745861727286,1.1353,1761.2,1761.1,1.13536]
[1745861728189,1.1353,1761.2,1761.0,45.14319]
[1745861728190,1.13536,1761.1,1761.0,45.14319]
[1745861728383,1.13536,1761.1,1761.0,44.0078]
[1745861728579,1.13536,1761.1,1761.0,45.14323]
[1745861728783,1.13536,1761.1,1761.0,4.34323]
[1745861729288,1.13536,1761.1,1761.0,6.03373]
[1745861729489,1.13536,1761.1,1761.0,4.8983]
[1745861729687,1.13549,1760.9,1760.8,47.9528]
[1745861729990,1.13549,1760.9,1760.8,49.08836]
[1745861730587,1.13549,1760.9,1760.8,47.9528]
[1745861730779,1.13562,1760.7,1760.6,2.01554]
[1745861730981,1.13562,1760.7,1760.6,3.72514]
[1745861731189,1.13562,1760.7,1760.5,5.07972]
[1745861731385,1.13569,1760.6,1760.5,5.6536]
[1745861731688,3.60469,1760.6,1760.5,6.78935]
[1745861731889,3.60469,1760.6,1760.5,47.58935]
[1745861732094,1.13568,1760.7,1760.6,1.13566]
[1745861732280,1.13568,1760.7,1760.6,2.84526]
[1745861732992,1.98721,1760.8,1760.7,1.13562]
[1745861733188,11.56037,1761.3,1760.7,1.13562]
[1745861733189,3.2078,1761.1,1760.8,1.13556]
[1745861733491,1.96885,1761.2,1761.1,1.13536]
[1745861734291,1.96885,1761.2,1761.1,1.6526]
[1745861734495,2.77335,1761.2,1761.1,1.6526]
[1745861736297,2.77335,1761.2,1761.1,2.78796]
[1745861736593,1.96885,1761.2,1761.1,2.78796]
[1745861736783,1.13528,1761.3,1761.2,1.13525]
[1745861736982,1.13528,1761.3,1761.2,3.69475]
[1745861738487,1.13528,1761.3,1761.2,1.7304]
[1745861738687,2.75988,1761.3,1761.2,1.7304]
[1745861739296,1.1353,1761.2,1761.1,5.08036]
[1745861739494,1.1353,1761.2,1761.1,5.6754]
[1745861739687,1.1353,1761.2,1761.1,6.81076]
[1745861740093,1.1353,1761.2,1761.1,5.6754]
[1745861740289,1.1353,1761.2,1761.1,3.945]
[1745861741198,1.1353,1761.2,1760.9,1.13544]
[1745861741199,1.13543,1761.0,1760.9,1.6008]
[1745861741398,1.13549,1760.9,1760.8,6.76295]
[1745861741599,1.13549,1760.9,1760.8,8.36375]
[1745861741795,1.13549,1760.9,1760.8,5.5448]
[1745861741999,1.13549,1760.9,1760.8,5.07956]
[1745861742191,1.13549,1760.9,1760.8,3.944]
[1745861742392,2.73409,1760.9,1760.8,3.944]
[1745861743202,2.73409,1760.9,1760.8,5.07956]
[1745861743403,2.73409,1760.9,1760.8,6.67466]
[1745861743698,4.34327,1761.0,1760.9,1.13549]
[1745861743999,4.34327,1761.0,1760.9,2.73059]
[1745861744000,1.13547,1761.0,1760.9,2.73059]
[1745861744198,1.13547,1761.0,1760.9,3.61559]
[1745861744603,1.732,1761.2,1760.9,5.6879]
[1745861744801,1.13535,1761.2,1761.1,1.13536]
[1745861745002,1.13536,1761.1,1761.0,3.60859]
[1745861745306,1.13536,1761.1,1761.0,2.01349]
[1745861745890,6.04547,1761.6,1761.0,8.71656]
[1745861746095,6.9308,1761.6,1761.5,1.13511]
[1745861746291,5.2201,1761.6,1761.5,1.13511]
[1745861746490,2.0123,1761.6,1761.5,1.13511]
[1745861747095,1.13511,1761.5,1761.4,5.07913]
[1745861747297,1.13511,1761.5,1761.4,3.944]
[1745861747595,2.84581,1761.5,1761.4,5.07917]
[1745861748101,5.22008,1761.6,1761.5,1.13511]
[1745861748305,3.2078,1761.8,1761.4,3.944]
[1745861748602,1.13505,1761.7,1761.6,1.13501]
[1745861749105,1.1351,1761.6,1761.5,1.13507]
[1745861749597,1.13511,1761.5,1761.4,5.07914]
[1745861749995,1.13511,1761.5,1761.4,3.944]
[1745861750194,1.13511,1761.5,1761.4,5.07917]
[1745861750402,1.13511,1761.5,1761.4,3.944]
[1745861750704,4.34291,1761.5,1761.4,3.944]
[1745861750902,5.20311,1761.5,1761.4,3.944]
[1745861751204,1.99531,1761.5,1761.4,5.07917]
[1745861751399,3.75361,1761.5,1761.4,5.07917]
[1745861751703,3.75361,1761.5,1761.4,3.944]
[1745861752699,1.13517,1761.4,1761.3,1.13522]
[1745861753202,1.99536,1761.5,1761.4,1.13517]
[1745861753407,1.13516,1761.5,1761.4,1.13517]
[1745861754506,1.95036,1761.5,1761.4,1.13517]
[1745861755197,1.13517,1761.4,1761.3,5.07924]
[1745861755401,2.84647,1761.4,1761.3,5.07924]
[1745861756502,2.84647,1761.4,1761.3,3.944]
[1745861756702,1.1353,1761.3,1761.1,1.6246]
[1745861757008,2.84652,1761.4,1761.3,1.13524]
[1745861758410,1.13517,1761.4,1761.3,1.13524]
[1745861758703,1.13517,1761.4,1761.3,2.73444]
[1745861758908,1.1351,1761.6,1761.5,1.13505]
[1745861759307,2.7868,1761.6,1761.5,1.13505]
[1745861759506,1.13511,1761.5,1761.4,2.88084]
[1745861760209,1.13523,1761.4,1761.3,1.13518]
[1745861761516,2.78686,1761.5,1761.4,1.13517]
[1745861764308,1.13516,1761.5,1761.4,1.13517]
[1745861765007,1.13516,1761.5,1761.4,1.95577]
[1745861770614,0.8062,1761.6,1761.5,1.13511]
[1745861770915,1.13501,1761.7,1761.6,1.13496]
[1745861771311,1.13501,1761.7,1761.6,41.93496]
[1745861771712,1.13501,1761.7,1761.6,40.8]
[1745861771920,1.13504,1761.6,1761.5,1.93609]
[1745861772306,1.6327,1761.7,1761.5,0.801]
[1745861772519,1.13504,1761.6,1761.5,42.73605]
[1745861772811,1.13504,1761.6,1761.5,1.93605]
[1745861773211,1.13504,1761.6,1761.5,42.73605]
[1745861774130,2.76772,1761.7,1761.6,1.13504]
[1745861775119,1.95056,1761.8,1761.7,1.13498]
[1745861775320,3.69446,1761.8,1761.7,1.13498]
[1745861775612,1.13504,1761.7,1761.6,1.13498]
[1745861776222,2.82164,1761.7,1761.6,1.13498]
[1745861777523,1.95057,1761.8,1761.7,1.13498]
[1745861777917,3.63717,1761.8,1761.7,1.13498]
[1745861778318,1.13498,1761.7,1761.6,2.81359]
[1745861778620,1.13504,1761.6,1761.5,1.13507]
[1745861778819,3.68714,1761.6,1761.5,2.81367]
[1745861782824,1.13511,1761.5,1761.4,45.5384]
[1745861783030,8.66211,1761.5,1761.2,2.4764]
[1745861783219,1.13522,1761.4,1761.3,1.13519]
[1745861783423,2.90412,1761.4,1761.3,2.74599]
[1745861784622,4.0553,1761.5,1761.3,2.74599]
[1745861784833,1.98264,1761.5,1761.4,2.74597]
[1745861786023,0.8475,1761.5,1761.4,2.74597]
[1745861786222,1.13508,1761.6,1761.5,1.13511]
[1745861786423,1.13508,1761.6,1761.5,3.65561]
[1745861786832,2.78646,1761.8,1761.7,1.13498]
[1745861787629,4.55786,1761.8,1761.7,2.83858]
[1745861788224,7.76566,1761.8,1761.7,2.83858]
[1745861788423,5.14036,1761.8,1761.7,2.83858]
[1745861788624,1.13488,1761.9,1761.8,1.13491]
[1745861788931,1.13488,1761.9,1761.8,2.84231]
[1745861789227,1.13488,1761.9,1761.8,3.65921]
[1745861789424,1.13498,1761.7,1761.6,3.936]
[1745861789930,1.13498,1761.7,1761.6,6.77844]
[1745861790135,2.83168,1761.7,1761.6,6.77844]
[1745861790432,1.6967,1761.7,1761.6,6.77844]
[1745861790631,2.84697,1761.8,1761.7,1.13498]
[1745861790832,4.54367,1761.8,1761.7,2.84238]
[1745861792030,1.97301,1761.8,1761.7,2.84238]
[1745861792331,1.97301,1761.8,1761.7,3.70068]
[1745861792728,0.8381,1761.8,1761.7,3.70068]
[1745861792928,3.65114,1762.0,1761.7,2.5657]
[1745861793133,3.65114,1762.0,1761.9,1.13485]
[1745861793337,1.13465,1762.3,1762.2,1.13461]
[1745861793633,1.13466,1762.2,1762.1,1.13467]
[1745861793820,1.13466,1762.2,1762.1,2.83237]
[1745861793821,2.77706,1762.2,1762.1,2.83237]
[1745861794221,1.13479,1762.0,1761.9,5.07079]
[1745861794533,1.13479,1762.0,1761.9,6.68499]
[1745861795034,1.13479,1762.0,1761.9,5.5502]
[1745861795225,3.59249,1762.0,1761.9,6.68505]
[1745861797730,3.59249,1762.0,1761.9,5.5502]
[1745861797924,3.59249,1762.0,1761.9,5.07085]
[1745861798631,1.96829,1762.0,1761.9,6.71875]
[1745861799033,0.8335,1762.0,1761.9,6.71875]
[1745861799232,1.96829,1762.0,1761.9,6.71875]
[1745861799427,0.8335,1762.0,1761.9,7.56135]
[1745861799627,1.13477,1762.1,1762.0,1.13479]
[1745861799932,1.93921,1762.2,1762.1,1.13472]
[1745861800534,1.13472,1762.1,1762.0,2.78267]
[1745861800740,2.85372,1762.1,1762.0,2.78267]
[1745861803440,1.719,1762.1,1762.0,2.78267]
[1745861803736,2.85372,1762.1,1762.0,2.78267]
[1745861803935,2.85372,1762.1,1762.0,1.13477]
[1745861804143,6.65572,1762.1,1762.0,1.13479]
[1745861804328,1.13479,1762.0,1761.9,8.27859]
[1745861804529,1.13491,1761.8,1761.7,4.34272]
[1745861804933,1.13491,1761.8,1761.7,6.11382]
[1745861805330,1.13498,1761.7,1761.6,5.06999]
[1745861805530,2.00808,1761.7,1761.6,5.06999]
[1745861805835,2.00808,1761.7,1761.6,6.84109]
[1745861810639,1.1351,1761.6,1761.5,1.13505]
[1745861810838,3.6967,1761.6,1761.5,1.13505]
[1745861811037,2.02207,1761.7,1761.6,1.13504]
[1745861811232,3.802,1762.2,1762.1,1.13472]
[1745861811434,4.55011,1762.5,1762.4,1.13453]
[1745861811938,1.13453,1762.4,1762.3,2.80193]
[1745861812234,6.65013,1762.4,1762.3,2.80193]
[1745861812749,1.13459,1762.3,1762.2,0.8362]
[1745861813039,1.13466,1762.2,1762.1,6.67658]
[1745861813239,1.98266,1762.2,1762.1,2.74058]
[1745861813636,2.84176,1762.2,1762.1,2.74058]
[1745861814140,6.64376,1762.2,1762.1,2.74058]
[1745861814342,6.64376,1762.2,1762.1,1.6059]
[1745861814538,6.64376,1762.2,1762.1,2.74062]
[1745861814836,6.64376,1762.2,1762.1,1.6059]
[1745861816043,6.64376,1762.2,1762.1,2.74062]
[1745861818939,7.64376,1762.2,1762.1,2.74062]
[1745861819340,1.13472,1762.1,1762.0,1.97094]
[1745861819535,4.802,1762.2,1762.1,1.13472]
[1745861819741,4.802,1762.2,1762.1,4.34252]
[1745861819936,4.802,1762.2,1762.1,6.08762]
[1745861820138,1.0,1762.2,1762.1,6.08762]
[1745861820338,1.0,1762.2,1762.1,2.87982]
[1745861820543,2.13466,1762.2,1762.1,2.87982]
[1745861821247,4.802,1762.2,1762.1,2.87982]
[1745861822139,1.0,1762.2,1762.1,2.87982]
[1745861825848,2.13454,1762.2,1762.1,2.87982]
[1745861826036,1.0,1762.2,1762.1,2.87982]
[1745861827750,2.13454,1762.2,1762.1,1.7451]
[1745861827949,1.13461,1762.1,1762.0,0.8362]
[1745861828255,1.97051,1762.1,1762.0,6.82147]
[1745861828845,5.93658,1762.2,1762.1,1.13461]
[1745861829145,1.13461,1762.1,1762.0,3.2078]
[1745861829446,1.13461,1762.1,1762.0,4.34247]
[1745861829447,3.58101,1762.1,1762.0,4.34247]
[1745861829652,3.58101,1762.1,1762.0,3.2078]
[1745861829855,3.58101,1762.1,1762.0,4.8506]
[1745861830154,7.38301,1762.1,1762.0,1.6428]
[1745861830350,7.38301,1762.1,1761.8,3.936]
[1745861830552,2.4678,1762.0,1761.5,0.8591]
[1745861830743,1.13493,1761.6,1761.5,1.6624]
[1745861831151,4.93693,1761.6,1761.5,1.6624]
[1745861831353,1.13506,1761.4,1761.3,1.97777]
[1745861831654,1.13506,1761.4,1761.3,3.64017]
[1745861832358,7.74522,1761.7,1761.4,1.13506]
[1745861832549,1.13493,1761.6,1761.5,1.6624]
[1745861833252,6.66683,1761.6,1761.5,1.6624]
[1745861834165,6.66683,1761.6,1761.5,2.79739]
[1745861834349,6.66683,1761.6,1761.5,1.6624]
[1745861835353,6.66683,1761.6,1761.5,2.79739]
[1745861835555,6.66683,1761.6,1761.5,1.6624]
[1745861836150,6.66683,1761.6,1761.5,2.79739]
[1745861836857,5.5319,1761.6,1761.5,2.79739]
[1745861837156,6.66683,1761.6,1761.5,2.79739]
[1745861839259,2.86483,1761.6,1761.5,2.79739]
[1745861840054,1.13493,1761.6,1761.5,2.79739]
[1745861844671,2.83658,1762.1,1761.7,2.83717]
[1745861844869,1.13474,1762.0,1761.9,1.13469]
[1745861845066,1.13474,1762.0,1761.9,2.83879]
[1745861846873,2.83684,1762.0,1761.9,2.83879]
[1745861847473,2.83684,1762.0,1761.9,1.7041]
[1745861847672,2.83684,1762.0,1761.9,2.83884]
[1745861848969,2.83684,1762.0,1761.9,1.7041]
[1745861849274,2.83684,1762.0,1761.9,2.83884]
[1745861849871,1.13474,1762.0,1761.9,2.83884]
[1745861850072,3.81296,1762.2,1762.1,1.13461]
[1745861850275,2.13456,1762.2,1762.1,1.13461]
[1745861850773,1.0,1762.2,1762.1,1.95031]
[1745861851160,2.13454,1762.2,1762.1,3.63181]
[1745861855075,2.13454,1762.2,1762.1,2.4972]
[1745861855374,2.13454,1762.2,1762.1,3.63181]
[1745861856974,1.0,1762.2,1762.1,3.63181]
[1745861857981,3.2078,1762.8,1762.1,7.4972]
[1745861858277,1.6986,1762.9,1762.7,1.1342]
[1745861858472,1.13421,1762.8,1762.7,1.1342]
[1745861858675,1.13421,1762.8,1762.7,2.7401]
[1745861859170,2.83271,1762.9,1762.8,1.13416]
[1745861859373,2.83271,1762.9,1762.8,3.57886]
[1745861860383,1.13411,1762.9,1762.8,3.57886]